[Event "Festival Groningen-A 2024"]
[Site "Groningen"]
[Date "2024.12.22"]
[Round "2.27"]
[White "Ritzerveld, Noah"]
[Black "Kanis, Sierk"]
[Result "1-0"]
[ECO "B15"]
[WhiteElo "2182"]
[BlackElo "2116"]
[Annotator "RC"]
[PlyCount "81"]
[EventDate "2024.12.21"]
[EventType "swiss"]
[EventCountry "NED"]
[SourceTitle "playchess.com"]
[Source "ChessBase"]
[SourceQuality "1"]
[TimeControl "40/5400+30:1800+30"]

1. e4 {[%emt 0:00:05]} c6 {[%emt 0:00:04]} 2. d4 {[%emt 0:00:07]} d5 {[%emt 0:00:04]} 3. Nc3 {[%emt 0:00:04]} dxe4 {[%emt 0:00:03]} 4. Nxe4 {[%emt 0:00:08]} Nf6 {[%emt 0:00:06]} 5. Nxf6+ {[%emt 0:00:07]} exf6 {[%emt 0:00:07]} 6. Be3 {[%emt 0:00:15]} Bd6 {[%emt 0:00:06]} 7. Bd3 {[%emt 0:00:07]} O-O {[%emt 0:00:13]} 8. Ne2 {[%emt 0:00:20]} Re8 {[%emt 0:00:19]} 9. O-O {[%emt 0:00:50]} Nd7 {[%emt 0:00:12]} 10. c4 {[%emt 0:00:41]} Nf8 {[%emt 0:00:36]} 11. Ng3 {[%emt 0:01:04]} Be6 {[%emt 0:14:22]} 12. Qd2 {[%emt 0:03:27]} Qd7 {[%emt 0:03:05]} 13. Rad1 {[%emt 0:04:52]} Rad8 {[%emt 0:01:12]} 14. b4 {[%emt 0:07:22]} Bb8 {[%emt 0:05:17]} 15. Qc2 {[%emt 0:10:56]} Qc7 {[%emt 0:06:39]} 16. Rfe1 {[%emt 0:04:12]} h5 {[%emt 0:03:38]} 17. h3 {[%emt 0:09:24]} h4 {[%emt 0:00:35]} 18. Nf1 {[%emt 0:00:07]} Ng6 {[%emt 0:01:16]} 19. Bf5 {[%emt 0:06:10]} Nf4 {[%emt 0:03:22]} 20. Bxe6 {[%emt 0:04:00]} Rxe6 {[%emt 0:03:42]} 21. Rd2 {[%emt 0:11:09]} b5 {[%emt 0:06:32]} 22. Bxf4 {[%emt 0:12:22]} Qxf4 {[%emt 0:00:18]} 23. Rxe6 {[%emt 0:00:34]} fxe6 {[%emt 0:00:14]} 24. cxb5 {[%emt 0:00:25]} cxb5 {[%emt 0:00:36]} 25. Qc6 {[%emt 0:00:36]} Qf5 {[%emt 0:05:24]} 26. Ne3 {[%emt 0:07:19]} Qb1+ {[%emt 0:00:47]} 27. Rd1 {[%emt 0:00:39]} Qxa2 {[%emt 0:01:30]} 28. d5 {[%emt 0:00:39]} exd5 {[%emt 0:08:07]} 29. Qe6+ {[%emt 0:00:46]} Kf8 {[%emt 0:02:13]} 30. Nf5 {[%emt 0:00:59]} Re8 {[%emt 0:01:09]} 31. Qd7 {[%emt 0:00:06]} Re5 {[%emt 0:02:51]} 32. Rc1 {[%emt 0:01:22]} Qc2 {[%emt 0:02:32]} 33. Qxg7+ {[%emt 0:04:29]} Ke8 {[%emt 0:00:07]} 34. Qg8+ {[%emt 0:00:42]} Kd7 {[%emt 0:00:11]} 35. Qf7+ {[%emt 0:00:34]} Kd8 {[%emt 0:00:13]} 36. Qxf6+ {[%emt 0:00:15]} Kd7 {[%emt 0:02:20]} 37. Qg7+ {[%emt 0:00:38]} Kd8 {[%emt 0:04:07]} 38. Qg5+ {[%emt 0:01:34]} Kd7 {[%emt 0:00:23]} 39. g4 {[%emt 0:00:48]} Qe4 {[%emt 0:04:39]} 40. Qg7+ {[%emt 0:00:12]} Kd8 {[%emt 0:00:16]} 41. Qf6+ {[%emt 0:30:29]} 1-0

[Event "Festival Groningen-A 2024"]
[Site "Groningen"]
[Date "2024.12.22"]
[Round "2.28"]
[White "Spit, Vincent"]
[Black "Keuning, Selwin"]
[Result "1/2-1/2"]
[ECO "B30"]
[WhiteElo "2113"]
[BlackElo "2180"]
[Annotator "RC"]
[PlyCount "90"]
[EventDate "2024.12.21"]
[EventType "swiss"]
[EventCountry "NED"]
[SourceTitle "playchess.com"]
[Source "ChessBase"]
[SourceQuality "1"]
[TimeControl "40/5400+30:1800+30"]

1. e4 {[%emt 0:00:04]} c5 {[%emt 0:00:10]} 2. Nf3 {[%emt 0:00:08]} Nc6 {[%emt 0:00:08]} 3. Bb5 {[%emt 0:00:09]} e5 {[%emt 0:00:15]} 4. O-O {[%emt 0:04:00]} Bd6 {[%emt 0:00:17]} 5. Nc3 {[%emt 0:06:26]} a6 {[%emt 0:05:31]} 6. Bxc6 {[%emt 0:01:20]} dxc6 {[%emt 0:00:40]} 7. a4 {[%emt 0:06:33]} Nf6 {[%emt 0:06:59]} 8. d3 {[%emt 0:04:46]} O-O {[%emt 0:07:36]} 9. h3 {[%emt 0:02:10]} Qe7 {[%emt 0:12:19]} 10. a5 {[%emt 0:07:45]} Bc7 {[%emt 0:04:54]} 11. Be3 {[%emt 0:03:58]} Rd8 {[%emt 0:15:26]} 12. Qe2 {[%emt 0:04:38]} Nd7 {[%emt 0:01:53]} 13. Nd2 {[%emt 0:11:07]} Nf8 {[%emt 0:01:34]} 14. Na4 {[%emt 0:02:10]} Bxa5 {[%emt 0:15:53]} 15. Bxc5 {[%emt 0:03:38]} Qg5 {[%emt 0:03:58]} 16. Nf3 {[%emt 0:07:47]} Qh5 {[%emt 0:02:15]} 17. b4 {[%emt 0:05:25]} Bc7 {[%emt 0:05:11]} 18. Bb6 {[%emt 0:03:14]} Bxb6 {[%emt 0:03:44]} 19. Nxb6 {[%emt 0:00:08]} Rb8 {[%emt 0:00:38]} 20. Nxc8 {[%emt 0:03:56]} Rbxc8 {[%emt 0:11:09]} 21. Ra5 {[%emt 0:00:54]} f6 {[%emt 0:00:00]} 22. d4 {[%emt 0:01:41]} b5 {[%emt 0:00:00]} 23. dxe5 {[%emt 0:01:17]} fxe5 {[%emt 0:00:00]} 24. Rxa6 {[%emt 0:01:49]} Ne6 {[%emt 0:00:00]} 25. Qe3 {[%emt 0:01:57]} Nf4 {[%emt 0:00:05]} 26. Kh2 {[%emt 0:04:24]} Rd6 {[%emt 0:01:44]} 27. Rg1 {[%emt 0:02:04]} Rf8 {[%emt 0:00:57]} 28. Ne1 {[%emt 0:01:18]} Rh6 {[%emt 0:00:18]} 29. Ra3 {[%emt 0:02:35]} Qd1 {[%emt 0:00:39]} 30. Qb3+ {[%emt 0:02:42]} Kh8 {[%emt 0:00:00]} 31. Nf3 {[%emt 0:00:54]} Qd6 {[%emt 0:00:59]} 32. Ra7 {[%emt 0:05:33]} Ne6 {[%emt 0:00:43]} 33. Rga1 {[%emt 0:00:00]} Rg6 {[%emt 0:00:28]} 34. Nh4 {[%emt 0:00:00]} Rgf6 {[%emt 0:00:23]} 35. Nf5 {[%emt 0:00:00]} Qd2 {[%emt 0:00:37]} 36. Ra8 {[%emt 0:00:14]} h6 {[%emt 0:00:34]} 37. Rxf8+ {[%emt 0:00:10]} Nxf8 {[%emt 0:00:01]} 38. f3 {[%emt 0:00:43]} Rg6 {[%emt 0:00:53]} 39. Ne3 {[%emt 0:00:15]} Ne6 {[%emt 0:00:15]} 40. Rd1 {[%emt 0:00:48]} Qf2 {[%emt 0:00:40]} 41. Kh1 {[%emt 0:04:22]} h5 {[%emt 0:05:46]} 42. Qc3 {[%emt 0:03:36]} Nf4 {[%emt 0:07:12]} 43. Rf1 {[%emt 0:02:37]} Qe2 {[%emt 0:01:23]} 44. Re1 {[%emt 0:03:32]} Qf2 {[%emt 0:00:13]} 45. Rf1 {[%emt 0:00:28]} Qe2 {[%emt 0:00:39]} 1/2-1/2

[Event "Festival Groningen-A 2024"]
[Site "Groningen"]
[Date "2024.12.22"]
[Round "2.29"]
[White "Duson, Robin"]
[Black "Ponnio, Toni"]
[Result "1/2-1/2"]
[ECO "D20"]
[WhiteElo "2159"]
[BlackElo "2111"]
[Annotator "RC"]
[PlyCount "54"]
[EventDate "2024.12.21"]
[EventType "swiss"]
[EventCountry "NED"]
[SourceTitle "playchess.com"]
[Source "ChessBase"]
[SourceQuality "1"]
[TimeControl "40/5400+30:1800+30"]

1. d4 {[%emt 0:00:07]} d5 {[%emt 0:00:06]} 2. c4 {[%emt 0:00:17]} dxc4 {[%emt 0:00:07]} 3. Nf3 {[%emt 0:00:28]} c5 {[%emt 0:00:12]} 4. e4 {[%emt 0:07:31]} cxd4 {[%emt 0:00:17]} 5. Qxd4 {[%emt 0:01:53]} Qxd4 {[%emt 0:00:09]} 6. Nxd4 {[%emt 0:00:05]} Bd7 {[%emt 0:00:10]} 7. Bxc4 {[%emt 0:01:39]} Nc6 {[%emt 0:00:16]} 8. Be3 {[%emt 0:09:10]} Rc8 {[%emt 0:04:25]} 9. Nd2 {[%emt 0:04:27]} a6 {[%emt 0:03:36]} 10. Ke2 {[%emt 0:14:28]} e6 {[%emt 0:08:51]} 11. Rac1 {[%emt 0:03:44]} Nxd4+ {[%emt 0:15:37]} 12. Bxd4 {[%emt 0:00:10]} Ne7 {[%emt 0:00:06]} 13. a3 {[%emt 0:14:27]} Nc6 {[%emt 0:02:03]} 14. Bb6 {[%emt 0:05:13]} Bd6 {[%emt 0:03:59]} 15. Ba2 {[%emt 0:05:47]} O-O {[%emt 0:05:00]} 16. Nc4 {[%emt 0:01:05]} Be7 {[%emt 0:14:48]} 17. Rhd1 {[%emt 0:08:25]} Nb8 {[%emt 0:01:42]} 18. Na5 {[%emt 0:02:05]} Ba4 {[%emt 0:00:44]} 19. Bb3 {[%emt 0:01:45]} Bxb3 {[%emt 0:05:47]} 20. Nxb3 {[%emt 0:00:08]} Bf6 {[%emt 0:01:18]} 21. Bd4 {[%emt 0:03:19]} Bxd4 {[%emt 0:01:41]} 22. Rxc8 {[%emt 0:01:55]} Rxc8 {[%emt 0:00:09]} 23. Rxd4 {[%emt 0:00:25]} Kf8 {[%emt 0:01:05]} 24. Kd2 {[%emt 0:01:25]} Ke7 {[%emt 0:00:26]} 25. Na5 {[%emt 0:02:28]} Nc6 {[%emt 0:00:27]} 26. Nxc6+ {[%emt 0:00:56]} Rxc6 {[%emt 0:00:12]} 27. e5 {[%emt 0:01:18]} Rc5 {[%emt 0:01:23]} 1/2-1/2

[Event "Festival Groningen-A 2024"]
[Site "Groningen"]
[Date "2024.12.22"]
[Round "2.30"]
[White "Wouters, Casper"]
[Black "De Boer, Bas"]
[Result "1/2-1/2"]
[ECO "B40"]
[WhiteElo "2110"]
[BlackElo "2157"]
[Annotator "RC"]
[PlyCount "156"]
[EventDate "2024.12.21"]
[EventType "swiss"]
[EventCountry "NED"]
[SourceTitle "playchess.com"]
[Source "ChessBase"]
[SourceQuality "1"]
[TimeControl "40/5400+30:1800+30"]

1. e4 {[%emt 0:00:04]} c5 {[%emt 0:00:05]} 2. Nf3 {[%emt 0:00:07]} e6 {[%emt 0:00:06]} 3. g3 {[%emt 0:00:11]} Nc6 {[%emt 0:00:49]} 4. Bg2 {[%emt 0:00:16]} Nf6 {[%emt 0:00:21]} 5. Qe2 {[%emt 0:00:34]} d5 {[%emt 0:02:53]} 6. exd5 {[%emt 0:00:39]} Nxd5 {[%emt 0:00:50]} 7. O-O {[%emt 0:00:36]} Be7 {[%emt 0:01:06]} 8. Rd1 {[%emt 0:01:08]} Ndb4 {[%emt 0:13:49]} 9. d3 {[%emt 0:11:20]} Nd4 {[%emt 0:03:34]} 10. Nxd4 {[%emt 0:00:33]} cxd4 {[%emt 0:00:02]} 11. c3 {[%emt 0:11:15]} Nc6 {[%emt 0:00:29]} 12. Nd2 {[%emt 0:02:03]} O-O {[%emt 0:01:24]} 13. Nb3 {[%emt 0:04:06]} Bf6 {[%emt 0:06:13]} 14. Bd2 {[%emt 0:02:59]} e5 {[%emt 0:06:35]} 15. Rac1 {[%emt 0:12:28]} a5 {[%emt 0:07:34]} 16. cxd4 {[%emt 0:20:27]} exd4 {[%emt 0:09:07]} 17. Nc5 {[%emt 0:04:25]} Re8 {[%emt 0:00:45]} 18. Qf1 {[%emt 0:01:09]} Qb6 {[%emt 0:10:47]} 19. b3 {[%emt 0:04:58]} Nb4 {[%emt 0:05:04]} 20. a3 {[%emt 0:05:14]} Na2 {[%emt 0:02:13]} 21. Rc4 {[%emt 0:02:28]} Be6 {[%emt 0:07:35]} 22. Nxe6 {[%emt 0:02:01]} Rxe6 {[%emt 0:00:20]} 23. Bd5 {[%emt 0:01:47]} Rd6 {[%emt 0:02:48]} 24. Qg2 {[%emt 0:00:30]} Rad8 {[%emt 0:01:50]} 25. Bxb7 {[%emt 0:03:44]} Qxb3 {[%emt 0:00:29]} 26. Re1 {[%emt 0:02:07]} Qxa3 {[%emt 0:05:57]} 27. Rc8 {[%emt 0:03:24]} Rxc8 {[%emt 0:00:21]} 28. Bxc8 {[%emt 0:00:03]} Rd8 {[%emt 0:00:13]} 29. Qc6 {[%emt 0:00:14]} Nc3 {[%emt 0:03:47]} 30. Bf5 {[%emt 0:01:20]} Qf8 {[%emt 0:00:49]} 31. Bf4 {[%emt 0:00:50]} Nd5 {[%emt 0:00:14]} 32. Bd2 {[%emt 0:01:49]} Ne7 {[%emt 0:00:28]} 33. Qe4 {[%emt 0:00:30]} Nxf5 {[%emt 0:00:31]} 34. Qxf5 {[%emt 0:00:02]} a4 {[%emt 0:00:29]} 35. Qb5 {[%emt 0:00:34]} Ra8 {[%emt 0:00:25]} 36. Bb4 {[%emt 0:00:24]} Qb8 {[%emt 0:00:42]} 37. Qc5 {[%emt 0:00:19]} Qc8 {[%emt 0:01:11]} 38. Qd6 {[%emt 0:00:47]} h6 {[%emt 0:00:21]} 39. Re4 {[%emt 0:01:42]} Qc1+ {[%emt 0:02:19]} 40. Re1 {[%emt 0:00:07]} Qc2 {[%emt 0:00:33]} 41. Qd5 {[%emt 0:05:01]} Rd8 {[%emt 0:00:27]} 42. Qb5 {[%emt 0:00:55]} Qb3 {[%emt 0:04:09]} 43. Ra1 {[%emt 0:01:32]} Ra8 {[%emt 0:10:13]} 44. Qc6 {[%emt 0:06:15]} Rb8 {[%emt 0:00:23]} 45. Bd6 {[%emt 0:03:26]} Rd8 {[%emt 0:02:37]} 46. Bc5 {[%emt 0:03:35]} Qxd3 {[%emt 0:00:35]} 47. Qxa4 {[%emt 0:00:21]} Qc3 {[%emt 0:03:17]} 48. Bb4 {[%emt 0:04:15]} Qc4 {[%emt 0:02:50]} 49. Bd2 {[%emt 0:01:05]} Qe2 {[%emt 0:00:37]} 50. Qa5 {[%emt 0:01:16]} Qf3 {[%emt 0:15:14]} 51. Re1 {[%emt 0:01:02]} Ra8 {[%emt 0:00:00]} 52. Qb4 {[%emt 0:01:16]} h5 {[%emt 0:00:00]} 53. h4 {[%emt 0:01:20]} g6 {[%emt 0:00:00]} 54. Bf4 {[%emt 0:01:56]} Qc3 {[%emt 0:00:00]} 55. Qxc3 {[%emt 0:02:09]} dxc3 {[%emt 0:00:00]} 56. Kf1 {[%emt 0:01:53]} Bd4 {[%emt 0:00:00]} 57. Rd1 {[%emt 0:00:28]} Bc5 {[%emt 0:00:02]} 58. Rc1 {[%emt 0:01:41]} Bb4 {[%emt 0:00:13]} 59. Rc2 {[%emt 0:00:12]} f6 {[%emt 0:00:58]} 60. Ke2 {[%emt 0:00:13]} Rd8 {[%emt 0:00:24]} 61. Bc7 {[%emt 0:00:57]} Rd7 {[%emt 0:00:29]} 62. Bb6 {[%emt 0:00:08]} Kf7 {[%emt 0:00:17]} 63. Ke3 {[%emt 0:00:06]} Ke6 {[%emt 0:02:38]} 64. Bd4 {[%emt 0:00:04]} Rc7 {[%emt 0:00:10]} 65. Kd3 {[%emt 0:00:11]} Kf5 {[%emt 0:00:16]} 66. f3 {[%emt 0:00:21]} Bd6 {[%emt 0:01:27]} 67. g4+ {[%emt 0:01:29]} hxg4 {[%emt 0:00:05]} 68. fxg4+ {[%emt 0:00:01]} Kxg4 {[%emt 0:00:11]} 69. Bxf6 {[%emt 0:00:05]} Bg3 {[%emt 0:00:52]} 70. Rg2 {[%emt 0:01:03]} c2 {[%emt 0:01:10]} 71. Rxc2 {[%emt 0:00:21]} Rxc2 {[%emt 0:00:07]} 72. Kxc2 {[%emt 0:00:01]} Bxh4 {[%emt 0:00:08]} 73. Bg7 {[%emt 0:00:23]} Kf5 {[%emt 0:00:15]} 74. Kd1 {[%emt 0:00:08]} g5 {[%emt 0:00:44]} 75. Ke2 {[%emt 0:00:10]} g4 {[%emt 0:00:13]} 76. Kf1 {[%emt 0:00:25]} Be7 {[%emt 0:00:15]} 77. Kg2 {[%emt 0:00:19]} Bf6 {[%emt 0:00:28]} 78. Bf8 {[%emt 0:00:17]} Be5 {[%emt 0:00:11]} 1/2-1/2